fUSD/lending_fUSD_20250209
["ID","MTS","AMOUNT","RATE_DAILY","PERIOD"]
[352435562,1739107840068,-500.0,0.00010621,2]
[352435563,1739107840077,-540.63988318,0.00010621,2]
[352435564,1739107840087,-500.0,0.00010621,2]
[352435565,1739107840096,-500.0,0.00010621,2]
[352435566,1739107840105,-500.0,0.00010621,2]
[352435567,1739107840114,-500.0,0.00010621,2]
[352435568,1739107840124,-286.66974938,0.00010621,2]
[352435569,1739107840134,-325.23685188,0.00010621,2]
[352435570,1739107840144,-500.0,0.00010621,2]
[352435571,1739107840154,-500.0,0.00010621,2]
[352435572,1739107840163,-500.0,0.00010621,2]
[352435573,1739107840172,-500.0,0.00010621,2]
[352435574,1739107840181,-500.0,0.00010621,2]
[352435575,1739107840190,-500.0,0.00010621,2]
[352435576,1739107840200,-500.0,0.00010621,2]
[352435577,1739107840209,-500.0,0.00010621,2]
[352435578,1739107840218,-500.0,0.00010621,2]
[352435579,1739107840227,-502.11047019,0.00010621,2]
[352435580,1739107840240,-500.0,0.00010621,2]
[352435581,1739107840250,-500.0,0.00010621,2]
[352435584,1739107840261,-500.0,0.00010621,2]
[352435585,1739107840270,-500.0,0.00010621,2]
[352435586,1739107840279,-461.00419305,0.00010621,2]
[352435587,1739107840289,-500.0,0.00010621,2]
[352435588,1739107840298,-549.95583035,0.00010621,2]
[352435589,1739107840308,-500.0,0.00010621,2]
[352435590,1739107840319,-500.0,0.00010621,2]
[352435591,1739107840328,-500.0,0.00010621,2]
[352435592,1739107840338,-500.0,0.00010621,2]
[352435593,1739107840348,-500.0,0.00010621,2]
[352435594,1739107840358,-500.0,0.00010621,2]
[352435595,1739107840367,-500.0,0.00010621,2]
[352435596,1739107840377,-500.0,0.00010621,2]
[352435597,1739107840388,-500.0,0.00010621,2]
[352435598,1739107840402,-500.0,0.00010621,2]
[352435599,1739107840413,-500.0,0.00010621,2]
[352435600,1739107840424,-500.0,0.00010621,2]
[352435601,1739107840440,-500.0,0.00010621,2]
[352435602,1739107840449,-500.0,0.00010621,2]
[352435603,1739107840459,-520.8397869,0.00010621,2]
[352435604,1739107840468,-500.90151274,0.00010621,2]
[352435605,1739107840478,-500.0,0.00010621,2]
[352435606,1739107840487,-500.0,0.00010621,2]
[352435607,1739107840497,-589.84934147,0.00010621,2]
[352435608,1739107840506,-500.0,0.00010621,2]
[352435609,1739107840516,-500.0,0.00010621,2]
[352435610,1739107840525,-500.0,0.00010621,2]
[352435611,1739107840535,-500.0,0.00010621,2]
[352435612,1739107840544,-500.0,0.00010621,2]
[352435613,1739107840553,-500.0,0.00010621,2]
[352435614,1739107840562,-500.0,0.00010621,2]
[352435615,1739107840572,-505.14548056,0.00010621,2]
[352435616,1739107840581,-500.0,0.00010621,2]
[352435617,1739107840591,-500.0,0.00010621,2]
[352435618,1739107840600,-500.0,0.00010621,2]
[352435619,1739107840609,-541.4725816,0.00010621,2]
[352435620,1739107840618,-500.0,0.00010621,2]
[352435621,1739107840627,-500.0,0.00010621,2]
[352435622,1739107840638,-500.16026163,0.00010621,2]
[352435623,1739107840647,-501.82,0.00010621,2]
[352435624,1739107840657,-501.04719396,0.00010621,2]
[352435625,1739107840667,-500.0,0.00010621,2]
[352435626,1739107840676,-500.0,0.00010621,2]
[352435627,1739107840685,-500.0,0.00010621,2]
[352435628,1739107840695,-500.0,0.00010621,2]
[352435629,1739107840704,-500.0,0.00010621,2]
[352435630,1739107840714,-500.0,0.00010621,2]
[352435631,1739107840723,-501.29873366,0.00010621,2]
[352435632,1739107840733,-500.0,0.00010621,2]
[352435633,1739107840742,-500.0,0.00010621,2]
[352435634,1739107840751,-541.29,0.00010621,2]
[352435635,1739107840762,-500.0,0.00010621,2]
[352435636,1739107840772,-503.4784583,0.00010621,2]
[352435637,1739107840782,-500.0,0.00010621,2]
[352435638,1739107840791,-502.17212235,0.00010621,2]
[352435639,1739107840801,-501.0150584,0.00010621,2]
[352435640,1739107840810,-500.0,0.00010621,2]
[352435641,1739107840821,-500.70862141,0.00010621,2]
[352435642,1739107840830,-500.0,0.00010621,2]
[352435643,1739107840839,-500.0,0.00010621,2]
[352435644,1739107840848,-504.33790305,0.00010621,2]
[352435645,1739107840858,-500.0,0.00010621,2]
[352435646,1739107840867,-501.70150771,0.00010621,2]
[352435647,1739107840876,-500.0,0.00010621,2]
[352435648,1739107840886,-500.0,0.00010621,2]
[352435649,1739107840895,-500.0,0.00010621,2]
[352435650,1739107840904,-500.0,0.00010621,2]
[352435651,1739107840914,-502.95514053,0.00010621,2]
[352435652,1739107840923,-701.75,0.00010621,2]
[352435653,1739107840932,-500.0,0.00010621,2]
[352435654,1739107840941,-500.0,0.00010621,2]
[352435655,1739107840950,-500.0,0.00010621,2]
[352435656,1739107840959,-500.0,0.00010621,2]
[352435657,1739107840969,-500.0,0.00010621,2]
[352435658,1739107840978,-500.0,0.00010621,2]
[352435659,1739107840987,-502.23849842,0.00010621,2]
[352435660,1739107840997,-500.0,0.00010621,2]
[352435661,1739107841006,-500.0,0.00010621,2]
[352435662,1739107841015,-500.0,0.00010621,2]
[352435663,1739107841024,-510.30707489,0.00010621,2]
[352435664,1739107841034,-500.0,0.00010621,2]
[352435665,1739107841043,-500.0,0.00010621,2]
[352435666,1739107841052,-554.16,0.00010621,2]
[352435667,1739107841061,-500.0,0.00010621,2]
[352435668,1739107841071,-500.0,0.00010621,2]
[352435669,1739107841080,-502.18264936,0.00010621,2]
[352435670,1739107841089,-500.0,0.00010621,2]
[352435671,1739107841098,-503.46935905,0.00010621,2]
[352435672,1739107841107,-500.0,0.00010621,2]
[352435673,1739107841116,-503.82396479,0.00010621,2]
[352435674,1739107841125,-500.0,0.00010621,2]
[352435675,1739107841134,-503.99988123,0.00010621,2]
[352435676,1739107841143,-500.0,0.00010621,2]
[352435677,1739107841153,-503.85090054,0.00010621,2]
[352435678,1739107841162,-500.0,0.00010621,2]
[352435679,1739107841172,-501.19136368,0.00010621,2]
[352435680,1739107841182,-500.0,0.00010621,2]
[352435681,1739107841191,-500.0,0.00010621,2]
[352435682,1739107841251,-500.0,0.00010621,2]
[352435683,1739107841262,-1995.06,0.00010621,2]
[352435684,1739107841271,-501.94670628,0.00010621,2]
[352435685,1739107841280,-1995.06,0.00010621,2]
[352435686,1739107841291,-1995.06,0.00010621,2]
[352435687,1739107841300,-500.0,0.00010621,2]
[352435688,1739107841309,-500.0,0.00010621,2]
[352435689,1739107841320,-500.0,0.00010621,2]
[352435690,1739107841329,-500.0,0.00010621,2]
[352435691,1739107841338,-500.0,0.00010621,2]
[352435692,1739107841347,-500.0,0.00010621,2]
[352435693,1739107841356,-508.38406962,0.00010621,2]
[352435694,1739107841364,-508.51,0.00010621,2]
[352435695,1739107841374,-500.0,0.00010621,2]
[352435696,1739107841383,-503.48440675,0.00010621,2]
[352435697,1739107841392,-500.0,0.00010621,2]
[352435698,1739107841401,-500.0,0.00010621,2]
[352435700,1739107841411,-504.77453799,0.00010621,2]
[352435702,1739107841420,-500.0,0.00010621,2]
[352435704,1739107841429,-500.0,0.00010621,2]
[352435706,1739107841438,-504.54184634,0.00010621,2]
[352435707,1739107841447,-500.0,0.00010621,2]
[352435708,1739107841459,-500.0,0.00010621,2]
[352435709,1739107841468,-500.0,0.00010621,2]
[352435710,1739107841477,-500.0,0.00010621,2]
[352435711,1739107841486,-500.0,0.00010621,2]
[352435712,1739107841495,-500.0,0.00010621,2]
[352435713,1739107841504,-500.0,0.00010621,2]
[352435714,1739107841514,-500.84237047,0.00010621,2]
[352435715,1739107841523,-500.0,0.00010621,2]
[352435716,1739107841532,-502.09856702,0.00010621,2]
[352435717,1739107841542,-500.0,0.00010621,2]
[352435718,1739107841550,-500.0,0.00010621,2]
[352435719,1739107841559,-500.0,0.00010621,2]
[352435720,1739107841569,-566.95,0.00010621,2]
[352435721,1739107841579,-500.0,0.00010621,2]
[352435722,1739107841588,-500.0,0.00010621,2]
[352435723,1739107841597,-543.22867127,0.00010621,2]
[352435724,1739107841606,-500.0,0.00010621,2]
[352435725,1739107841615,-274.89920895,0.00010621,2]
[352435726,1739107841624,-500.0,0.00010621,2]
[352435727,1739107841633,-500.0,0.00010621,2]
[352435728,1739107841643,-500.85849681,0.00010621,2]
[352435729,1739107841651,-500.0,0.00010621,2]
[352435730,1739107841661,-500.0,0.00010621,2]
[352435731,1739107841670,-500.0,0.00010621,2]
[352435732,1739107841679,-500.0,0.00010621,2]
[352435733,1739107841688,-500.0,0.00010621,2]
[352435734,1739107841697,-516.17,0.00010621,2]
[352435735,1739107841706,-501.51211345,0.00010621,2]
[352435736,1739107841715,-500.0,0.00010621,2]
[352435737,1739107841724,-500.88969693,0.00010621,2]
[352435738,1739107841733,-500.0,0.00010621,2]
[352435739,1739107841742,-500.0,0.00010621,2]
[352435740,1739107841752,-500.0,0.00010621,2]
[352435741,1739107841761,-500.0,0.00010621,2]
[352435742,1739107841771,-500.0,0.00010621,2]
[352435743,1739107841780,-500.0,0.00010621,2]
[352435744,1739107841789,-500.0,0.00010621,2]
[352435745,1739107841801,-500.0,0.00010621,2]
[352435746,1739107841811,-576.02,0.00010621,2]
[352435747,1739107841821,-500.0,0.00010621,2]
[352435748,1739107841830,-500.0,0.00010621,2]
[352435749,1739107841839,-500.0,0.00010621,2]
[352435750,1739107841848,-500.0,0.00010621,2]
[352435751,1739107841857,-500.0,0.00010621,2]
[352435752,1739107841866,-500.0,0.00010621,2]
[352435753,1739107841875,-573.59,0.00010621,2]
[352435754,1739107841884,-500.0,0.00010621,2]
[352435755,1739107841894,-500.0,0.00010621,2]
[352435756,1739107841903,-500.77463396,0.00010621,2]
[352435757,1739107841914,-500.39197061,0.00010621,2]
[352435758,1739107841925,-500.0,0.00010621,2]
[352435759,1739107841935,-500.0,0.00010621,2]
[352435760,1739107841944,-500.0,0.00010621,2]
[352435761,1739107841954,-500.0,0.00010621,2]
[352435762,1739107841963,-500.0,0.00010621,2]
[352435763,1739107841972,-500.0,0.00010621,2]
[352435764,1739107841982,-500.0,0.00010621,2]
[352435765,1739107841991,-500.0,0.00010621,2]
[352435766,1739107842001,-727.19,0.00010621,2]
[352435767,1739107842012,-501.50300113,0.00010621,2]
[352435768,1739107842022,-500.0,0.00010621,2]
[352435769,1739107842031,-500.0,0.00010621,2]
[352435770,1739107842041,-500.0,0.00010621,2]
[352435771,1739107842051,-500.0,0.00010621,2]
[352435772,1739107842061,-500.0,0.00010621,2]
[352435773,1739107842070,-500.0,0.00010621,2]
[352435774,1739107842080,-500.0,0.00010621,2]
[352435775,1739107842089,-500.0,0.00010621,2]
[352435776,1739107842099,-500.0,0.00010621,2]
[352435777,1739107842109,-620.23,0.00010621,2]
[352435778,1739107842118,-500.0,0.00010621,2]
[352435779,1739107842127,-500.0,0.00010621,2]
[352435780,1739107842136,-500.0,0.00010621,2]
[352435781,1739107842145,-500.0,0.00010621,2]
[352435782,1739107842154,-500.0,0.00010621,2]
[352435783,1739107842163,-500.0,0.00010621,2]
[352435784,1739107842173,-500.0,0.00010621,2]
[352435785,1739107842182,-500.6100174,0.00010621,2]
[352435786,1739107842191,-503.00500572,0.00010621,2]
[352435787,1739107842201,-500.0,0.00010621,2]
[352435788,1739107842211,-543.97,0.00010621,2]
[352435789,1739107842220,-500.0,0.00010621,2]
[352435790,1739107842229,-573.79,0.00010621,2]
[352435791,1739107842241,-500.0,0.00010621,2]
[352435792,1739107842251,-510.98516391,0.00010621,2]
[352435793,1739107842261,-500.0,0.00010621,2]
[352435794,1739107842271,-500.0,0.00010621,2]
[352435795,1739107842281,-500.0,0.00010621,2]
[352435796,1739107842291,-500.0,0.00010621,2]
[352435797,1739107842301,-500.0,0.00010621,2]
[352435798,1739107842311,-500.0,0.00010621,2]
[352435799,1739107842323,-500.0,0.00010621,2]
[352435800,1739107842333,-503.24233675,0.00010621,2]
[352435801,1739107842348,-500.54916612,0.00010621,2]
[352435802,1739107842358,-500.0,0.00010621,2]
[352435803,1739107842367,-500.0,0.00010621,2]
[352435804,1739107842376,-500.0,0.00010621,2]
[352435805,1739107842385,-400.86772046,0.00010621,2]
[352435806,1739107842393,-500.0,0.00010621,2]
[352435807,1739107842403,-500.0,0.00010621,2]
[352435808,1739107842411,-501.81776813,0.00010621,2]
[352435809,1739107842422,-638.01,0.00010621,2]
[352435810,1739107842432,-538.30403397,0.00010621,2]
[352435811,1739107842443,-500.0,0.00010621,2]
[352435812,1739107842453,-601.24,0.00010621,2]
[352435813,1739107842463,-500.0,0.00010621,2]
[352435814,1739107842472,-277.38015964,0.00010621,2]
[352435815,1739107842482,-500.0,0.00010621,2]
[352435816,1739107842492,-503.23757019,0.00010621,2]
[352435817,1739107842501,-503.28535827,0.00010621,2]
[352435818,1739107842510,-502.64870772,0.00010621,2]
[352435820,1739107842520,-509.06234011,0.00010621,2]
[352435821,1739107842529,-500.0,0.00010621,2]
[352435822,1739107842539,-500.0,0.00010621,2]
[352435823,1739107842548,-321.7336469,0.00010621,2]
[352435824,1739107842557,-500.0,0.00010621,2]
[352435825,1739107842566,-502.13675645,0.00010621,2]
[352435826,1739107842577,-500.0,0.00010621,2]
[352435827,1739107842586,-501.85534149,0.00010621,2]
[352435828,1739107842596,-500.0,0.00010621,2]
[352435829,1739107842606,-502.52454328,0.00010621,2]
[352435830,1739107842615,-500.0,0.00010621,2]
[352435831,1739107842624,-500.0,0.00010621,2]
[352435832,1739107842634,-704.82,0.00010621,2]
[352435833,1739107842643,-500.0,0.00010621,2]
[352435834,1739107842652,-603.16,0.00010621,2]
[352435835,1739107842662,-731.45,0.00010621,2]
[352435836,1739107842671,-500.0,0.00010621,2]
[352435837,1739107842681,-500.0,0.00010621,2]
[352435838,1739107842690,-730.12,0.00010621,2]
[352435840,1739107842700,-301.46395054,0.00010621,2]
[352435841,1739107842709,-500.0,0.00010621,2]
[352435842,1739107842719,-497.54411396,0.00010621,2]
[352435843,1739107842728,-503.89094402,0.00010621,2]
[352435844,1739107842738,-1316.46,0.00010621,2]
[352435845,1739107842747,-500.85572646,0.00010621,2]
[352435846,1739107842757,-500.0,0.00010621,2]
[352435847,1739107842767,-708.33,0.00010621,2]
[352435848,1739107842777,-500.0,0.00010621,2]
[352435849,1739107842786,-500.0,0.00010621,2]
[352435850,1739107842795,-787.33,0.00010621,2]
[352435851,1739107842804,-563.98,0.00010621,2]
[352435852,1739107842814,-500.0,0.00010621,2]
[352435853,1739107842824,-1390.78,0.00010621,2]
[352435854,1739107842834,-325.88910065,0.00010621,2]
[352435855,1739107842844,-500.0,0.00010621,2]
[352435856,1739107842853,-500.0,0.00010621,2]
[352435857,1739107842863,-500.0,0.00010621,2]
[352435858,1739107842872,-698.39,0.00010621,2]
[352435859,1739107842882,-500.0,0.00010621,2]
[352435860,1739107842891,-499.2033788,0.00010621,2]
[352435861,1739107842901,-500.0,0.00010621,2]
[352435862,1739107842911,-1393.85,0.00010621,2]
[352435863,1739107842920,-507.19121886,0.00010621,2]
[352435864,1739107842934,-514.6,0.00010621,2]
[352435865,1739107842943,-500.0,0.00010621,2]
[352435866,1739107842954,-936.4,0.00010621,2]
[352435867,1739107842964,-504.35703949,0.00010621,2]
[352435868,1739107842975,-1334.52,0.00010621,2]
[352435869,1739107842985,-1378.75,0.00010621,2]
[352435870,1739107842995,-500.0,0.00010621,2]
[352435871,1739107843006,-500.0,0.00010621,2]
[352435872,1739107843017,-500.0,0.00010621,2]
[352435873,1739107843027,-500.0,0.00010621,2]
[352435874,1739107843038,-1314.92,0.00010621,2]
[352435875,1739107843047,-949.47,0.00010621,2]
[352435876,1739107843059,-500.0,0.00010621,2]
[352435877,1739107843069,-500.0,0.00010621,2]
[352435878,1739107843079,-500.0,0.00010621,2]
[352435879,1739107843089,-500.0,0.00010621,2]
[352435880,1739107843100,-500.0,0.00010621,2]
[352435881,1739107843110,-560.88,0.00010621,2]
[352435883,1739107843119,-977.97,0.00010621,2]
[352435884,1739107843128,-500.0,0.00010621,2]
[352435885,1739107843138,-500.0,0.00010621,2]
[352435886,1739107843148,-769.7,0.00010621,2]
[352435887,1739107843157,-731.74,0.00010621,2]
[352435888,1739107843167,-755.71,0.00010621,2]
[352435889,1739107843176,-500.0,0.00010621,2]
[352435890,1739107843186,-672.89,0.00010621,2]
[352435891,1739107843195,-500.0,0.00010621,2]
[352435892,1739107843206,-500.0,0.00010621,2]
[352435893,1739107843215,-500.0,0.00010621,2]
[352435894,1739107843225,-535.22331316,0.00010621,2]
[352435895,1739107843235,-500.0,0.00010621,2]
[352435896,1739107843248,-789.01,0.00010621,2]
[352435897,1739107843258,-557.77829632,0.00010621,2]
[352435899,1739107843269,-500.0,0.00010621,2]
[352435900,1739107843278,-538.17,0.00010621,2]
[352435901,1739107843289,-500.0,0.00010621,2]
[352435902,1739107843299,-500.0,0.00010621,2]
[352435904,1739107843309,-703.45,0.00010621,2]
[352435906,1739107843319,-533.4599666,0.00010621,2]
[352435908,1739107843328,-500.0,0.00010621,2]
[352435910,1739107843338,-500.0,0.00010621,2]
[352435912,1739107843348,-500.0,0.00010621,2]
[352435914,1739107843360,-500.0,0.00010621,2]
[352435916,1739107843370,-500.0,0.00010621,2]
[352435917,1739107843380,-500.0,0.00010621,2]
[352435918,1739107843390,-500.0,0.00010621,2]
[352435920,1739107843400,-503.56238895,0.00010621,2]
[352435922,1739107843410,-1016.08,0.00010621,2]
[352435923,1739107843420,-500.0,0.00010621,2]
[352435924,1739107843430,-576.55,0.00010621,2]
[352435925,1739107843439,-705.29,0.00010621,2]
[352435926,1739107843449,-766.53,0.00010621,2]
[352435927,1739107843459,-500.0,0.00010621,2]
[352435928,1739107843469,-371.36,0.00010621,2]
[352435929,1739107843478,-116304.15668376,0.00010621,2]
[352435930,1739107843488,-336.59690902,0.00010622,2]
[352435931,1739107843500,-500.0,0.00010622,2]
[352435932,1739107843510,-500.0,0.00010622,2]
[352435933,1739107843521,-500.0,0.00010622,2]
[352435934,1739107843530,-642.01,0.00010622,2]
[352435935,1739107843539,-500.0,0.00010622,2]
[352435936,1739107843549,-539.72,0.00010622,2]
[352435937,1739107843558,-500.0,0.00010622,2]
[352435938,1739107843569,-500.0,0.00010622,2]
[352435939,1739107843579,-500.0,0.00010622,2]
[352435940,1739107843588,-500.0,0.00010622,2]
[352435941,1739107843598,-500.0,0.00010622,2]
[352435942,1739107843607,-151.18,0.00010705,2]
[352435943,1739107843617,-150.0,0.00010734,2]
[352435944,1739107843626,-158.276148,0.00010735,2]
[352435945,1739107843635,-500.0,0.00010735,2]
[352435946,1739107843645,-945.4,0.00010735,2]
[352435947,1739107843654,-500.0,0.00010735,2]
[352435948,1739107843663,-1196.06,0.00010735,2]
[352435949,1739107843673,-1411.24,0.00010735,2]
[352435950,1739107843683,-500.0,0.00010735,2]
[352435951,1739107843693,-1704.82,0.00010735,2]
[352435952,1739107843702,-921.89,0.00010735,2]
[352435953,1739107843712,-761.62,0.00010735,2]
[352435954,1739107843722,-809.89,0.00010735,2]
[352435955,1739107843731,-1085.47,0.00010735,2]
[352435956,1739107843743,-500.0,0.00010735,2]
[352435957,1739107843752,-869.28,0.00010735,2]
[352435958,1739107843762,-1125.97,0.00010735,2]
[352435959,1739107843772,-1069.98,0.00010735,2]
[352435960,1739107843782,-1000.0,0.00010735,2]
[352435961,1739107843791,-1075.57,0.00010735,2]
[352435962,1739107843803,-500.0,0.00010735,2]
[352435963,1739107843814,-869.7,0.00010735,2]
[352435964,1739107843827,-1080.69,0.00010735,2]
[352435965,1739107843836,-250.0,0.00010735,2]
[352435966,1739107843846,-150.0,0.00010736,2]
[352435967,1739107843863,-569.0,0.00010736,2]
[352435968,1739107843873,-638.0,0.00010736,2]
[352435969,1739107843883,-1827.0,0.00010736,2]
[352435970,1739107843892,-783.0,0.00010736,2]
[352435971,1739107843902,-907.0,0.00010736,2]
[352435972,1739107843912,-2954.0,0.00010736,2]
[352435973,1739107843922,-1264.0,0.00010736,2]
[352435974,1739107843931,-539.0,0.00010736,2]
[352435975,1739107843942,-3913.0,0.00010736,2]
[352435976,1739107843952,-150.0,0.00010736,2]
[352435977,1739107843962,-1007.0,0.00010736,2]
[352435978,1739107843971,-151.0,0.00010736,2]
[352435979,1739107843982,-2024.0,0.00010736,2]
[352435980,1739107843994,-500.0,0.00010751,2]
[352435981,1739107844004,-500.0,0.00010751,2]
[352435982,1739107844014,-574.37,0.00010751,2]
[352435983,1739107844024,-594.17,0.00010751,2]
[352435984,1739107844034,-500.0,0.00010751,2]
[352435985,1739107844043,-500.0,0.00010751,2]
[352435986,1739107844053,-500.0,0.00010751,2]
[352435987,1739107844062,-500.0,0.00010751,2]
[352435988,1739107844072,-500.0,0.00010751,2]
[352435989,1739107844081,-500.0,0.00010751,2]
[352435990,1739107844091,-500.0,0.00010751,2]
[352435991,1739107844100,-505.84,0.00010751,2]
[352435992,1739107844109,-579.83,0.00010751,2]
[352435993,1739107844119,-500.0,0.00010751,2]
[352435994,1739107844129,-652.14,0.00010751,2]
[352435995,1739107844138,-500.0,0.00010751,2]
[352435996,1739107844147,-500.0,0.00010751,2]
[352435997,1739107844157,-500.0,0.00010751,2]
[352435998,1739107844167,-500.0,0.00010751,2]
[352435999,1739107844176,-500.0,0.00010751,2]
[352436000,1739107844185,-500.0,0.00010751,2]
[352436001,1739107844195,-500.0,0.00010751,2]
[352436002,1739107844204,-500.0,0.00010751,2]
[352436003,1739107844214,-527.38,0.00010751,2]
[352436004,1739107844224,-500.0,0.00010751,2]
[352436005,1739107844233,-655.75,0.00010751,2]
[352436006,1739107844247,-787.42,0.00010751,2]
[352436007,1739107844256,-810.3,0.00010751,2]
[352436008,1739107844266,-500.0,0.00010751,2]
[352436009,1739107844276,-500.0,0.00010751,2]
[352436010,1739107844286,-500.0,0.00010751,2]
[352436011,1739107844295,-500.0,0.00010751,2]
[352436012,1739107844304,-500.0,0.00010751,2]
[352436013,1739107844316,-500.0,0.00010751,2]
[352436014,1739107844325,-500.0,0.00010751,2]
[352436015,1739107844335,-500.0,0.00010751,2]
[352436016,1739107844344,-860.15,0.00010751,2]
[352436017,1739107844354,-556.55,0.00010751,2]
[352436018,1739107844363,-500.0,0.00010751,2]
[352436019,1739107844373,-500.0,0.00010751,2]
[352436020,1739107844382,-597.29,0.00010751,2]
[352436021,1739107844392,-1061.93,0.00010751,2]
[352436022,1739107844402,-500.0,0.00010751,2]
[352436023,1739107844411,-500.0,0.00010751,2]
[352436024,1739107844420,-500.0,0.00010751,2]
[352436025,1739107844430,-500.0,0.00010751,2]
[352436026,1739107844439,-504.04591318,0.00010751,2]
[352436027,1739107844448,-503.00902072,0.00010751,2]
[352436028,1739107844458,-503.7878425,0.00010751,2]
[352436029,1739107844467,-594.83,0.00010751,2]
[352436030,1739107844476,-500.0,0.00010751,2]
[352436031,1739107844486,-500.0,0.00010751,2]
[352436032,1739107844495,-500.0,0.00010751,2]
[352436033,1739107844504,-500.0,0.00010751,2]
[352436034,1739107844514,-500.0,0.00010751,2]
[352436035,1739107844524,-500.0,0.00010751,2]
[352436036,1739107844533,-500.0,0.00010751,2]
[352436037,1739107844543,-500.0,0.00010751,2]
[352436038,1739107844552,-500.0,0.00010751,2]
[352436039,1739107844562,-500.0,0.00010751,2]
[352436040,1739107844571,-500.0,0.00010751,2]
[352436041,1739107844581,-500.0,0.00010751,2]
[352436042,1739107844590,-500.0,0.00010751,2]
[352436043,1739107844600,-500.0,0.00010751,2]
[352436044,1739107844610,-509.2,0.00010751,2]
[352436045,1739107844620,-500.0,0.00010751,2]
[352436046,1739107844630,-500.0,0.00010751,2]
[352436047,1739107844639,-500.0,0.00010757,2]
[352436048,1739107844649,-503.02073104,0.00010757,2]
[352436049,1739107844659,-500.0,0.00010757,2]
[352436050,1739107844669,-313.88544119,0.00010757,2]
[352436051,1739107844678,-500.0,0.00010757,2]
[352436052,1739107844688,-500.0,0.00010757,2]
[352436053,1739107844698,-502.86772417,0.00010757,2]
[352436054,1739107844708,-500.0,0.00010757,2]
[352436055,1739107844719,-500.0,0.00010757,2]
[352436056,1739107844729,-500.0,0.00010757,2]
[352436057,1739107844739,-500.0,0.00010757,2]
[352436058,1739107844749,-500.0,0.00010757,2]
[352436059,1739107844758,-500.27612287,0.00010757,2]
[352436060,1739107844768,-500.0,0.00010757,2]
[352436061,1739107844778,-500.0,0.00010757,2]
[352436062,1739107844787,-500.0,0.00010757,2]
[352436063,1739107844797,-500.0,0.00010757,2]
[352436064,1739107844806,-500.0,0.00010757,2]
[352436065,1739107844816,-503.19489683,0.00010757,2]
[352436066,1739107844825,-500.72698189,0.00010757,2]
[352436067,1739107844835,-500.0,0.00010757,2]
[352436068,1739107844845,-500.0,0.00010757,2]
[352436069,1739107844855,-500.0,0.00010757,2]
[352436070,1739107844864,-500.0,0.00010757,2]
[352436071,1739107844874,-373.94730101,0.00010757,2]
[352436072,1739107844883,-502.1950876,0.00010757,2]
[352436073,1739107844893,-500.0,0.00010757,2]
[352436074,1739107844903,-504.42602503,0.00010757,2]
[352436075,1739107844913,-500.0,0.00010757,2]
[352436076,1739107844923,-500.0,0.00010757,2]
[352436077,1739107844933,-500.0,0.00010757,2]
[352436078,1739107844942,-500.0,0.00010757,2]
[352436079,1739107844952,-500.0,0.00010757,2]
[352436080,1739107844961,-500.0,0.00010757,2]